Workbook

Sheet Analysis
A1: 2014-04-14 | B1: 104.4 | C1: 180 | D1: =SUM(B1:B1) -> 104.4 | E1: =SUM(C1:C1) -> 180
A2: =A1+7 -> 2014-04-21 | B2: 104.4 | C2: 180 | D2: =SUM(B1:B2) -> 208.8 | E2: =SUM(C1:C2) -> 360
A3: =A2+7 -> 2014-04-28 | B3: 104.4 | C3: 180 | D3: =SUM(B1:B3) -> 313.2 | E3: =SUM(C1:C3) -> 540
A4: 2014-05-05 | B4: 104.4 | C4: 180 | D4: =SUM(B1:B4) -> 417.6 | E4: =SUM(C1:C4) -> 720
A5: 2014-05-12 | B5: 104.4 | C5: 180 | D5: =SUM(B1:B5) -> 522 | E5: =SUM(C1:C5) -> 900
A6: 2014-05-19 | B6: 104.4 | C6: 180 | D6: =SUM(B1:B6) -> 626.4 | E6: =SUM(C1:C6) -> 1080
A7: 2014-05-26 | B7: 104.4 | C7: 180 | D7: =SUM(B1:B7) -> 730.8 | E7: =SUM(C1:C7) -> 1260
A8: 2014-06-02 | B8: 104.4 | C8: 180 | D8: =SUM(B1:B8) -> 835.2 | E8: =SUM(C1:C8) -> 1440
A9: 2014-06-09 | B9: 104.4 | C9: 180 | D9: =SUM(B1:B9) -> 939.6 | E9: =SUM(C1:C9) -> 1620
A10: 2014-06-16 | B10: 104.4 | C10: 180
A11: 2014-06-23 | B11: 104.4 | C11: 180
A12: season lock
A13: Raw Counts | K13: % Distributions
A14: Weeks Remaining | B14: Bronze | C14: Silver | D14: Gold | E14: Platinum | F14: Diamond | G14: Master | H14: GM | I14: Totals | K14: Bronze | L14: Silver | M14: Gold | N14: Platinum | O14: Diamond | P14: Master
A15: 1 | B15: 470 | C15: 671 | D15: 3197 | E15: 2437 | F15: 2799 | G15: =COUNTIF(Master!$C$1:$C$2047,Analysis!A15) -> 376 | H15: =COUNTIF(GM!$C$1:$C$199,Analysis!A15) -> 199 | I15: =SUM(B15:H15) -> 10149 | K15: =B15/$I15 -> 0.04630998128 | L15: 0.06611488817 | M15: 0.3150064046 | N15: 0.2401221795 | O15: 0.2757907183 | P15: 0.03704798502
A16: 2 | B16: 155 | C16: 282 | D16: 1253 | E16: 910 | F16: 903 | G16: =COUNTIF(Master!$C$1:$C$2047,Analysis!A16) -> 151 | H16: =COUNTIF(GM!$C$1:$C$199,Analysis!A16) -> 0 | I16: =SUM(B16:H16) -> 3654 | K16: =B16/$I16 -> 0.04241926656 | L16: =C16/$I16 -> 0.07717569787 | M16: =D16/$I16 -> 0.3429118774 | N16: =E16/$I16 -> 0.2490421456 | O16: =F16/$I16 -> 0.2471264368 | P16: =G16/$I16 -> 0.04132457581
A17: 3 | B17: 155 | C17: 334 | D17: 1321 | E17: 983 | F17: 892 | G17: =COUNTIF(Master!$C$1:$C$2047,Analysis!A17) -> 158 | H17: =COUNTIF(GM!$C$1:$C$199,Analysis!A17) -> 0 | I17: 3843 | K17: 0.04033307312 | L17: 0.08691126724 | M17: 0.3437418683 | N17: 0.2557897476 | O17: 0.2321103305 | P17: 0.04111371324
A18: 4 | B18: 171 | C18: 363 | D18: 1655 | E18: 977 | F18: 830 | G18: =COUNTIF(Master!$C$1:$C$2047,Analysis!A18) -> 172 | H18: =COUNTIF(GM!$C$1:$C$199,Analysis!A18) -> 0 | I18: 4168 | K18: 0.0410268714 | L18: 0.08709213052 | M18: 0.3970729367 | N18: 0.2344049904 | O18: 0.1991362764 | P18: 0.04126679463
A19: 5 | B19: 197 | C19: 478 | D19: 1969 | E19: 1233 | F19: 911 | G19: =COUNTIF(Master!$C$1:$C$2047,Analysis!A19) -> 172 | H19: =COUNTIF(GM!$C$1:$C$199,Analysis!A19) -> 0 | I19: 4960 | J19: =SUM(I15:I19) -> 26774 | K19: 0.03971774194 | L19: 0.09637096774 | M19: 0.3969758065 | N19: 0.2485887097 | O19: 0.1836693548 | P19: 0.03467741935
A20: 6 | B20: 283 | C20: 770 | D20: 2699 | E20: 1375 | F20: 944 | G20: =COUNTIF(Master!$C$1:$C$2047,Analysis!A20) -> 192 | H20: =COUNTIF(GM!$C$1:$C$199,Analysis!A20) -> 0 | I20: 6263 | K20: 0.04518601309 | L20: 0.1229442759 | M20: 0.4309436372 | N20: 0.2195433498 | O20: 0.1507264889 | P20: 0.03065623503
A21: 7 | B21: 457 | C21: 1463 | D21: 3867 | E21: 1562 | F21: 968 | G21: =COUNTIF(Master!$C$1:$C$2047,Analysis!A21) -> 226 | H21: =COUNTIF(GM!$C$1:$C$199,Analysis!A21) -> 0 | I21: 8543 | K21: 0.05349408873 | L21: 0.1712513169 | M21: 0.4526512935 | N21: 0.1828397518 | O21: 0.113309142 | P21: 0.02645440712
A22: 8 | B22: 1085 | C22: 3805 | D22: 5941 | E22: 1801 | F22: 1119 | G22: =COUNTIF(Master!$C$1:$C$2047,Analysis!A22) -> 211 | H22: =COUNTIF(GM!$C$1:$C$199,Analysis!A22) -> 0 | I22: 13962 | K22: 0.07771092967 | L22: 0.2725254262 | M22: 0.4255121043 | N22: 0.1289929809 | O22: 0.08014611087 | P22: 0.01511244807
A23: 9 | B23: 10259 | C23: 17916 | D23: 12153 | E23: 4004 | F23: 2094 | G23: =COUNTIF(Master!$C$1:$C$2047,Analysis!A23) -> 389 | H23: =COUNTIF(GM!$C$1:$C$199,Analysis!A23) -> 0 | I23: 46815 | K23: 0.2191391648 | L23: 0.3826978533 | M23: 0.2595962832 | N23: 0.08552814269 | O23: 0.04472925344 | P23: 0.008309302574
A24: Totals | B24: =SUM(B15:B23) -> 13232 | C24: =SUM(C15:C23) -> 26082 | D24: 34055 | E24: 15282 | F24: 11460 | G24: 2047 | H24: 199 | I24: =SUM(B24:H24) -> 102357 | K24: =B24/$I24 -> 0.1292730346 | L24: 0.2548140332 | M24: 0.3327080708 | N24: 0.149300976 | O24: 0.1119610774 | P24: 0.01999863224
J25: Target: | K25: 0.08 | L25: 0.2 | M25: 0.32 | N25: 0.2 | O25: 0.18 | P25: 0.02
A26: =A15&" | "&B15&" | "&C15&" | "&D15&" | "&E15&" | "&F15&" | "&G15 -> 1 | 470 | 671 | 3197 | 2437 | 2799 | 376 | K26: =A15&" | "&ROUNDDOWN(K15,4)*100&"% | "&ROUNDDOWN(L15,4)*100&"% | "&ROUNDDOWN(M15,4)*100&"% | "&ROUNDDOWN(N15,4)*100&"% | "&ROUNDDOWN(O15,4)*100&"% | "&ROUNDDOWN(P15,4)*100&"%" -> 1 | 4.63% | 6.61% | 31.5% | 24.01% | 27.57% | 3.7%
A27: =A16&" | "&B16&" | "&C16&" | "&D16&" | "&E16&" | "&F16&" | "&G16 -> 2 | 155 | 282 | 1253 | 910 | 903 | 151 | K27: =A16&" | "&ROUNDDOWN(K16,4)*100&"% | "&ROUNDDOWN(L16,4)*100&"% | "&ROUNDDOWN(M16,4)*100&"% | "&ROUNDDOWN(N16,4)*100&"% | "&ROUNDDOWN(O16,4)*100&"% | "&ROUNDDOWN(P16,4)*100&"%" -> 2 | 4.24% | 7.71% | 34.29% | 24.9% | 24.71% | 4.13%
A28: 3 | 155 | 334 | 1321 | 983 | 892 | 158 | K28: 3 | 4.03% | 8.69% | 34.37% | 25.57% | 23.21% | 4.11%
A29: 4 | 171 | 363 | 1655 | 977 | 830 | 172 | K29: 4 | 4.1% | 8.7% | 39.7% | 23.44% | 19.91% | 4.12%
A30: 5 | 197 | 478 | 1969 | 1233 | 911 | 172 | K30: 5 | 3.97% | 9.63% | 39.69% | 24.85% | 18.36% | 3.46%
A31: 6 | 283 | 770 | 2699 | 1375 | 944 | 192 | K31: 6 | 4.51% | 12.29% | 43.09% | 21.95% | 15.07% | 3.06%
A32: 7 | 457 | 1463 | 3867 | 1562 | 968 | 226 | K32: 7 | 5.34% | 17.12% | 45.26% | 18.28% | 11.33% | 2.64%
A33: 8 | 1085 | 3805 | 5941 | 1801 | 1119 | 211 | K33: 8 | 7.77% | 27.25% | 42.55% | 12.89% | 8.01% | 1.51%
A34: 9 | 10259 | 17916 | 12153 | 4004 | 2094 | 389 | K34: 9 | 21.91% | 38.26% | 25.95% | 8.55% | 4.47% | 0.83%

Sheet Bronze
A1: Azimuth | B1: 930 | C1: 9
A2: SatanKitty | B2: 931 | C2: 9
A3: xxxxxxxxxxxx | B3: 571 | C3: 6
A4: Satanicmonk | B4: 932 | C4: 9
A5: KrOk | B5: 7 | C5: 1
A6: IMKING | B6: 8 | C6: 1
A7: Charls | B7: 8 | C7: 1
A8: IssHooW | B8: 9 | C8: 1
A9: CDman | B9: 18 | C9: 1
A10: klista | B10: 2 | C10: 1
A11: coenot | B11: 14 | C11: 1
A12: Reaperx | B12: 12 | C12: 1
A13: TheGorgon | B13: 3 | C13: 1
A14: BangleBros | B14: 62 | C14: 1
A15: JoshMan | B15: 4 | C15: 1
A16: Fourier | B16: 3 | C16: 1
A17: Jackal | B17: 4 | C17: 1
A18: Wolfman | B18: 7 | C18: 1
A19: PugeHenis | B19: 14 | C19: 1
A20: ChagoVA | B20: 33 | C20: 1
A21: Kavaeli | B21: 1 | C21: 1
A22: SilentGhost | B22: 23 | C22: 1
A23: DrBowman | B23: 9 | C23: 1
A24: Arriaga | B24: 97 | C24: 1
A25: stryker | B25: 3 | C25: 1
A26: Yamitenshi | B26: 1 | C26: 1
A27: diegopac | B27: 0 | C27: 1
A28: DrDinosaur | B28: 23 | C28: 1
A29: stevenash | B29: 0 | C29: 1
A30: Poonslayer | B30: 54 | C30: 1
A31: Ezilix | B31: 23 | C31: 1
A32: Destrega | B32: 24 | C32: 1
A33: omb | B33: 18 | C33: 1
A34: Omega | B34: 17 | C34: 1
A35: general | B35: 13 | C35: 1
A36: GRRRILLA | B36: 6 | C36: 1
A37: Jarhead | B37: 2 | C37: 1
A38: kip | B38: 4 | C38: 1
A39: jONsHAFT | B39: 0 | C39: 1
A40: IRICH | B40: 3 | C40: 1
A41: oOGoSuOo | B41: 9 | C41: 1
A42: KINGS | B42: 2 | C42: 1
A43: daltoneb | B43: 1 | C43: 1
A44: Kenodd | B44: 10 | C44: 1
A45: whatever | B45: 7 | C45: 1
A46: Conquistador | B46: 10 | C46: 1
A47: caspernator | B47: 6 | C47: 1
A48: nemo | B48: 18 | C48: 1
A49: EllscorChoU | B49: 12 | C49: 1
A50: Wolgast | B50: 2 | C50: 1
A51: BoBo | B51: 18 | C51: 1
A52: DeepWade | B52: 3 | C52: 1
A53: MANOSABOTAGE | B53: 12 | C53: 1
A54: KARONTE | B54: 10 | C54: 1
A55: lightcloud | B55: 43 | C55: 1
A56: Elius | B56: 6 | C56: 1
A57: BeeRed | B57: 9 | C57: 1
A58: GNoby | B58: 10 | C58: 1
A59: ahrentheboss | B59: 18 | C59: 1
A60: Ppoloni | B60: 10 | C60: 1
A61: RAM | B61: 1 | C61: 1
A62: Xtngwishr | B62: 23 | C62: 1
A63: Salieri | B63: 0 | C63: 1
A64: leviathan | B64: 0 | C64: 1
A65: Munchi | B65: 1 | C65: 1
A66: Carlinhosgui | B66: 61 | C66: 1
A67: Zug | B67: 48 | C67: 1
A68: jeffy | B68: 13 | C68: 1
A69: Quarkdog | B69: 16 | C69: 1
A70: Medusa | B70: 15 | C70: 1
A71: Glaedr | B71: 41 | C71: 1
A72: Maxwoodhouse | B72: 18 | C72: 1
A73: CoolDude | B73: 7 | C73: 1
A74: nustake | B74: 1 | C74: 1
A75: TossnYoSalad | B75: 11 | C75: 1
A76: gerrilleroxx | B76: 23 | C76: 1
A77: TheSentinal | B77: 9 | C77: 1
A78: CBII | B78: 9 | C78: 1
A79: Farouqio | B79: 2 | C79: 1
A80: Lucas | B80: 1 | C80: 1
A81: RavensBeast | B81: 29 | C81: 1
A82: bob | B82: 11 | C82: 1
A83: Raresies | B83: 4 | C83: 1
A84: ZAMBOOIE | B84: 24 | C84: 1
A85: ZAMBOOIE | B85: 24 | C85: 1
A86: Ricky | B86: 0 | C86: 1
A87: SubtleSmoke | B87: 8 | C87: 1
A88: lonegunman | B88: 2 | C88: 1
A89: Dudak | B89: 8 | C89: 1
A90: buscador | B90: 3 | C90: 1
A91: TheFlash | B91: 1 | C91: 1
A92: jalo | B92: 23 | C92: 1
A93: Emmanuel | B93: 30 | C93: 1
A94: Battousalem | B94: 4 | C94: 1
A95: NIKO | B95: 46 | C95: 1
A96: Logan | B96: 7 | C96: 1
A97: Shapeshifter | B97: 13 | C97: 1
A98: Minotauro | B98: 9 | C98: 1
A99: mattathias | B99: 2 | C99: 1
A100: Dakka | B100: 14 | C100: 1
A101: luis | B101: 10 | C101: 1
A102: WaterOfNazar | B102: 15 | C102: 1
A103: Armalyte | B103: 40 | C103: 1
A104: Enzion | B104: 16 | C104: 1
A105: Madlib | B105: 27 | C105: 1
A106: Raduk | B106: 28 | C106: 1
A107: PLACENTAFACE | B107: 15 | C107: 1
A108: Ludwig | B108: 6 | C108: 1
A109: droid | B109: 25 | C109: 1
A110: Asazi | B110: 47 | C110: 1
A111: dragonkiller | B111: 104 | C111: 1
A112: XIII | B112: 87 | C112: 1
A113: MikeHawk | B113: 25 | C113: 1
A114: TheOtherGuy | B114: 12 | C114: 1
A115: phoobahr | B115: 31 | C115: 1
A116: Igor | B116: 63 | C116: 1
A117: BlastU | B117: 9 | C117: 1
A118: CHOFIYEAAAH | B118: 10 | C118: 1
A119: WACKO | B119: 56 | C119: 1
A120: Skullid | B120: 20 | C120: 1
A121: ChiefChimpy | B121: 24 | C121: 1
A122: XrayDoc | B122: 39 | C122: 1
A123: MustardTiger | B123: 42 | C123: 1
A124: Kragle | B124: 45 | C124: 1
A125: Wattie | B125: 28 | C125: 1
A126: CrstiaN | B126: 43 | C126: 1
A127: Sinnayen | B127: 37 | C127: 1
A128: Reklawj | B128: 0 | C128: 1
A129: Bozer | B129: 48 | C129: 1
A130: Fixer | B130: 73 | C130: 1
A131: Fayehawk | B131: 10 | C131: 1
A132: Rekindle | B132: 1 | C132: 1
A133: wolverine | B133: 7 | C133: 1
A134: Ricky | B134: 10 | C134: 1
A135: tdecahuach | B135: 30 | C135: 1
A136: TheLegend | B136: 0 | C136: 1
A137: JavoSplv | B137: 17 | C137: 1
A138: Rjay | B138: 69 | C138: 1
A139: Pepsi | B139: 65 | C139: 1
A140: Moog | B140: 61 | C140: 1
A141: olliepower | B141: 37 | C141: 1
A142: Managerk | B142: 38 | C142: 1
A143: headwinds | B143: 1 | C143: 1
A144: Vacation | B144: 23 | C144: 1
A145: Syandtisos | B145: 0 | C145: 1
A146: Zombielord | B146: 43 | C146: 1
A147: LANCE | B147: 29 | C147: 1
A148: bobtheslob | B148: 25 | C148: 1
A149: rasputin | B149: 31 | C149: 1
A150: DasMan | B150: 0 | C150: 1
A151: geckocamaro | B151: 8 | C151: 1
A152: nizel | B152: 9 | C152: 1
A153: ATruck | B153: 12 | C153: 1
A154: ScarpiaWoton | B154: 15 | C154: 1
A155: DomusWarrior | B155: 1 | C155: 1
A156: dalton | B156: 1 | C156: 1
A157: JaneShock | B157: 32 | C157: 1
A158: Pele | B158: 0 | C158: 1
A159: WaterGeneral | B159: 13 | C159: 1
A160: shep | B160: 15 | C160: 1
A161: MigueCR | B161: 1 | C161: 1
A162: Madguy | B162: 15 | C162: 1
A163: SpikAndSpan | B163: 17 | C163: 1
A164: RedDwarf | B164: 11 | C164: 1
A165: makmorn | B165: 81 | C165: 1
A166: SpiderMouse | B166: 68 | C166: 1
A167: dUplO | B167: 0 | C167: 1
A168: funsizek | B168: 26 | C168: 1
A169: Puma | B169: 0 | C169: 1
A170: Raptor | B170: 8 | C170: 1
A171: YouGotBit | B171: 73 | C171: 1
A172: Showtimez | B172: 0 | C172: 1
A173: Wildblu | B173: 10 | C173: 1
A174: mig | B174: 30 | C174: 1
A175: vicharraco | B175: 44 | C175: 1
A176: Diego | B176: 13 | C176: 1
A177: salamicake | B177: 0 | C177: 1
A178: MycrO | B178: 108 | C178: 2
A179: KuNui | B179: 0 | C179: 1
A180: FireZerg | B180: 86 | C180: 1
A181: Sicarius | B181: 20 | C181: 1
A182: DerGewinner | B182: 42 | C182: 1
A183: FrodoMatrix | B183: 100 | C183: 1
A184: Travster | B184: 22 | C184: 1
A185: xBlitzKriegx | B185: 44 | C185: 1
A186: Hogs | B186: 17 | C186: 1
A187: Gfunk | B187: 44 | C187: 1
A188: runningnaked | B188: 9 | C188: 1
A189: HumanAnD | B189: 8 | C189: 1
A190: ORION | B190: 1 | C190: 1
A191: Tekla | B191: 128 | C191: 2
A192: KunjiBoy | B192: 28 | C192: 1
A193: BLESTESHE | B193: 0 | C193: 1
A194: Alejo | B194: 2 | C194: 1
A195: Marzhina | B195: 25 | C195: 1
A196: Othrys | B196: 59 | C196: 1
A197: OutLawCore | B197: 4 | C197: 1
A198: matarlos | B198: 68 | C198: 1
A199: SunSouque | B199: 23 | C199: 1
A200: kOOlbeans | B200: 18 | C200: 1
... 13032 more rows

Sheet Silver
A1: DragonVsSoul | B1: 928 | C1: 9
A2: Yuccas | B2: 868 | C2: 9
A3: DEFENDER | B3: 826 | C3: 8
A4: Apollo | B4: 930 | C4: 9
A5: One | B5: 837 | C5: 9
A6: Catbug | B6: 1 | C6: 1
A7: Gokan | B7: 7 | C7: 1
A8: KAIJUperfect | B8: 6 | C8: 1
A9: Therealkeith | B9: 5 | C9: 1
A10: bomber | B10: 7 | C10: 1
A11: jimmy | B11: 7 | C11: 1
A12: Chakal | B12: 6 | C12: 1
A13: PupWrangler | B13: 7 | C13: 1
A14: ResortLight | B14: 8 | C14: 1
A15: SkChaoz | B15: 1 | C15: 1
A16: HELPeR | B16: 20 | C16: 1
A17: danos | B17: 0 | C17: 1
A18: drducks | B18: 12 | C18: 1
A19: Alaska | B19: 10 | C19: 1
A20: RingoStarr | B20: 11 | C20: 1
A21: PunisheR | B21: 6 | C21: 1
A22: beefroll | B22: 27 | C22: 1
A23: Hydra | B23: 3 | C23: 1
A24: Kazerix | B24: 9 | C24: 1
A25: spaceGOAT | B25: 6 | C25: 1
A26: AchachR | B26: 0 | C26: 1
A27: lossered | B27: 5 | C27: 1
A28: Shady | B28: 9 | C28: 1
A29: rygar | B29: 3 | C29: 1
A30: Scarmiglione | B30: 10 | C30: 1
A31: KillerJoe | B31: 11 | C31: 1
A32: ripepsi | B32: 11 | C32: 1
A33: KnowUrEnemy | B33: 32 | C33: 1
A34: VincePascoe | B34: 29 | C34: 1
A35: Stevo | B35: 3 | C35: 1
A36: Zeiss | B36: 9 | C36: 1
A37: highlandarx | B37: 11 | C37: 1
A38: doggiedo | B38: 15 | C38: 1
A39: Gerdieman | B39: 8 | C39: 1
A40: TheWarTurtle | B40: 0 | C40: 1
A41: HappyK | B41: 9 | C41: 1
A42: oscar | B42: 52 | C42: 1
A43: Turk | B43: 0 | C43: 1
A44: organism | B44: 23 | C44: 1
A45: Cezaro | B45: 10 | C45: 1
A46: DJG | B46: 55 | C46: 1
A47: CAP | B47: 23 | C47: 1
A48: TitsMcGee | B48: 22 | C48: 1
A49: wuantang | B49: 0 | C49: 1
A50: BurnerDan | B50: 12 | C50: 1
A51: Kubrick | B51: 0 | C51: 1
A52: XenoDinny | B52: 10 | C52: 1
A53: Meatyshells | B53: 30 | C53: 1
A54: zann | B54: 0 | C54: 1
A55: Jonny | B55: 1 | C55: 1
A56: chemical | B56: 12 | C56: 1
A57: Bogie | B57: 60 | C57: 1
A58: CheesyBob | B58: 13 | C58: 1
A59: criticalhit | B59: 14 | C59: 1
A60: MrBaby | B60: 20 | C60: 1
A61: Rondeau | B61: 15 | C61: 1
A62: CHRIS | B62: 7 | C62: 1
A63: GunSlinger | B63: 0 | C63: 1
A64: Arvizo | B64: 11 | C64: 1
A65: Atrophy | B65: 14 | C65: 1
A66: Kate | B66: 22 | C66: 1
A67: Pyke | B67: 8 | C67: 1
A68: Cadnium | B68: 10 | C68: 1
A69: sundaysorrow | B69: 26 | C69: 1
A70: Shuwaang | B70: 25 | C70: 1
A71: Disease | B71: 18 | C71: 1
A72: dreamix | B72: 9 | C72: 1
A73: XxFernandoxX | B73: 9 | C73: 1
A74: LoneWolf | B74: 10 | C74: 1
A75: HepA | B75: 20 | C75: 1
A76: Wonky | B76: 7 | C76: 1
A77: Overrider | B77: 12 | C77: 1
A78: Zenith | B78: 8 | C78: 1
A79: Frogzilla | B79: 1 | C79: 1
A80: myownsword | B80: 5 | C80: 1
A81: ChrisLink | B81: 8 | C81: 1
A82: Woerschling | B82: 9 | C82: 1
A83: SoulReaper | B83: 23 | C83: 1
A84: Butter | B84: 9 | C84: 1
A85: Skador | B85: 14 | C85: 1
A86: Clobberfist | B86: 6 | C86: 1
A87: StaticX | B87: 0 | C87: 1
A88: GhOsTLy | B88: 11 | C88: 1
A89: Joel | B89: 44 | C89: 1
A90: CaptainSpink | B90: 9 | C90: 1
A91: MoltenGold | B91: 7 | C91: 1
A92: Xaqar | B92: 0 | C92: 1
A93: Dizzyfalcon | B93: 3 | C93: 1
A94: Spartacus | B94: 7 | C94: 1
A95: GrayMatter | B95: 25 | C95: 1
A96: PatoDriver | B96: 17 | C96: 1
A97: VampLord | B97: 5 | C97: 1
A98: NewOneMSeven | B98: 0 | C98: 1
A99: kiwidamien | B99: 7 | C99: 1
A100: Asalthe | B100: 10 | C100: 1
A101: DaleJones | B101: 40 | C101: 1
A102: Princesscake | B102: 46 | C102: 1
A103: Daezen | B103: 0 | C103: 1
A104: Derek | B104: 22 | C104: 1
A105: OzkrRyz | B105: 23 | C105: 1
A106: Thiago | B106: 1 | C106: 1
A107: xJACx | B107: 10 | C107: 1
A108: gart | B108: 42 | C108: 1
A109: TofuCivic | B109: 22 | C109: 1
A110: FadePack | B110: 15 | C110: 1
A111: REDRUM | B111: 13 | C111: 1
A112: Federation | B112: 1 | C112: 1
A113: curtdiggler | B113: 9 | C113: 1
A114: Magnum | B114: 12 | C114: 1
A115: Warlord | B115: 10 | C115: 1
A116: Cin | B116: 8 | C116: 1
A117: crawler | B117: 35 | C117: 1
A118: Adama | B118: 39 | C118: 1
A119: Hamt | B119: 15 | C119: 1
A120: GrosMou | B120: 31 | C120: 1
A121: Grumpton | B121: 31 | C121: 1
A122: xXspritsXx | B122: 2 | C122: 1
A123: Raph | B123: 1 | C123: 1
A124: realmmaster | B124: 18 | C124: 1
A125: Dog | B125: 14 | C125: 1
A126: Shugo | B126: 6 | C126: 1
A127: Stevvcash | B127: 26 | C127: 1
A128: Gordan | B128: 15 | C128: 1
A129: shtnrsbsoon | B129: 12 | C129: 1
A130: Primus | B130: 6 | C130: 1
A131: octatronic | B131: 11 | C131: 1
A132: Toawa | B132: 27 | C132: 1
A133: BLaCkBuCaS | B133: 9 | C133: 1
A134: NSkowyra | B134: 10 | C134: 1
A135: squidbilly | B135: 1 | C135: 1
A136: coco | B136: 8 | C136: 1
A137: Kraken | B137: 6 | C137: 1
A138: MrBungle | B138: 1 | C138: 1
A139: ALe | B139: 12 | C139: 1
A140: matenynphic | B140: 1 | C140: 1
A141: Markyjas | B141: 83 | C141: 1
A142: FiatPunto | B142: 1 | C142: 1
A143: mity | B143: 21 | C143: 1
A144: Nahum | B144: 9 | C144: 1
A145: OBWANCANABIZ | B145: 14 | C145: 1
A146: OrkoPolo | B146: 10 | C146: 1
A147: Kazi | B147: 33 | C147: 1
A148: MaxFan | B148: 7 | C148: 1
A149: Callipygian | B149: 7 | C149: 1
A150: Illuminato | B150: 1 | C150: 1
A151: Raishu | B151: 8 | C151: 1
A152: Joshua | B152: 61 | C152: 1
A153: Leadbottom | B153: 8 | C153: 1
A154: Stonebender | B154: 6 | C154: 1
A155: whitescene | B155: 8 | C155: 1
A156: Keith | B156: 54 | C156: 1
A157: ICEKORE | B157: 10 | C157: 1
A158: Jess | B158: 10 | C158: 1
A159: deathcyth | B159: 3 | C159: 1
A160: Narwhal | B160: 12 | C160: 1
A161: Whitelodge | B161: 9 | C161: 1
A162: Larkin | B162: 51 | C162: 1
A163: jcrellik | B163: 42 | C163: 1
A164: ShadowsNexor | B164: 4 | C164: 1
A165: Raeign | B165: 30 | C165: 1
A166: Yaxhiro | B166: 75 | C166: 1
A167: Starman | B167: 2 | C167: 1
A168: Thebian | B168: 8 | C168: 1
A169: Epicurus | B169: 11 | C169: 1
A170: TripD | B170: 68 | C170: 1
A171: larr | B171: 7 | C171: 1
A172: COWBOYS | B172: 26 | C172: 1
A173: Celeron | B173: 9 | C173: 1
A174: Commander | B174: 86 | C174: 1
A175: Trex | B175: 24 | C175: 1
A176: PuNk | B176: 72 | C176: 1
A177: HighArchon | B177: 14 | C177: 1
A178: LotusBlossom | B178: 36 | C178: 1
A179: Zeus | B179: 25 | C179: 1
A180: bumshakabum | B180: 30 | C180: 1
A181: HAC | B181: 44 | C181: 1
A182: Nillfoskill | B182: 14 | C182: 1
A183: Leftees | B183: 4 | C183: 1
A184: swindle | B184: 38 | C184: 1
A185: Maverik | B185: 8 | C185: 1
A186: MacDeath | B186: 43 | C186: 1
A187: PapaKen | B187: 19 | C187: 1
A188: Hurley | B188: 8 | C188: 1
A189: Cubb | B189: 15 | C189: 1
A190: Pogomor | B190: 82 | C190: 1
A191: kzierath | B191: 13 | C191: 1
A192: Diegopm | B192: 15 | C192: 1
A193: Morgoth | B193: 7 | C193: 1
A194: Daveydoh | B194: 8 | C194: 1
A195: iamlbjend | B195: 24 | C195: 1
A196: ThePatriarch | B196: 55 | C196: 1
A197: Jayrome | B197: 12 | C197: 1
A198: SonusEco | B198: 9 | C198: 1
A199: cuttingedge | B199: 6 | C199: 1
A200: RunNgun | B200: 49 | C200: 1
... 25882 more rows

Sheet Gold
A1: SetPyrC | B1: 884 | C1: 9
A2: BEEF | B2: 927 | C2: 9
A3: CrimsonFang | B3: 68 | C3: 1
A4: azh | B4: 883 | C4: 9
A5: RageQuitPliz | B5: 927 | C5: 9
A6: ThOrganizer | B6: 928 | C6: 9
A7: ForEx | B7: 909 | C7: 9
A8: TROUTMASK | B8: 6 | C8: 1
A9: GoldPiPi | B9: 43 | C9: 1
A10: DrkMatter | B10: 6 | C10: 1
A11: lllPsyKidIll | B11: 10 | C11: 1
A12: skeeter | B12: 7 | C12: 1
A13: birdman | B13: 6 | C13: 1
A14: Tsinatas | B14: 5 | C14: 1
A15: Andrew | B15: 7 | C15: 1
A16: KyungJun | B16: 2 | C16: 1
A17: Douglutz | B17: 5 | C17: 1
A18: Poco | B18: 6 | C18: 1
A19: TERMINATOR | B19: 7 | C19: 1
A20: Primal | B20: 24 | C20: 1
A21: Igbarash | B21: 7 | C21: 1
A22: Naniel | B22: 22 | C22: 1
A23: Mastaace | B23: 13 | C23: 1
A24: JaZ | B24: 5 | C24: 1
A25: Tidgey | B25: 12 | C25: 1
A26: Maurlath | B26: 13 | C26: 1
A27: Joshryu | B27: 5 | C27: 1
A28: JFLizardking | B28: 3 | C28: 1
A29: neoghaleon | B29: 6 | C29: 1
A30: kellOw | B30: 10 | C30: 1
A31: Magicredsox | B31: 18 | C31: 1
A32: Glyde | B32: 10 | C32: 1
A33: yawgmoth | B33: 2 | C33: 1
A34: Balthier | B34: 5 | C34: 1
A35: Darksword | B35: 13 | C35: 1
A36: naZara | B36: 6 | C36: 1
A37: litemash | B37: 7 | C37: 1
A38: Mixcoatl | B38: 6 | C38: 1
A39: Ivakha | B39: 22 | C39: 1
A40: ParanoidPimp | B40: 37 | C40: 1
A41: FireEmblem | B41: 18 | C41: 1
A42: Slarti | B42: 19 | C42: 1
A43: Punkiss | B43: 11 | C43: 1
A44: ShadowMonk | B44: 19 | C44: 1
A45: Kenson | B45: 7 | C45: 1
A46: ChacMool | B46: 5 | C46: 1
A47: Resipsa | B47: 16 | C47: 1
A48: Beefbasket | B48: 69 | C48: 1
A49: dixynormus | B49: 5 | C49: 1
A50: Jefoy | B50: 10 | C50: 1
A51: SIGON | B51: 4 | C51: 1
A52: Messerschmit | B52: 21 | C52: 1
A53: WeedBoss | B53: 16 | C53: 1
A54: Narzil | B54: 11 | C54: 1
A55: NaYa | B55: 8 | C55: 1
A56: imALLLLin | B56: 35 | C56: 1
A57: Backlasher | B57: 18 | C57: 1
A58: EightTrix | B58: 5 | C58: 1
A59: SEALteamSIX | B59: 5 | C59: 1
A60: jpegNY | B60: 22 | C60: 1
A61: NiceToCu | B61: 8 | C61: 1
A62: Theldras | B62: 6 | C62: 1
A63: March | B63: 5 | C63: 1
A64: BigKitty | B64: 8 | C64: 1
A65: Papirius | B65: 5 | C65: 1
A66: fhjalle | B66: 10 | C66: 1
A67: Buckinator | B67: 5 | C67: 1
A68: MacedoN | B68: 13 | C68: 1
A69: Autist | B69: 15 | C69: 1
A70: Bariumenemy | B70: 6 | C70: 1
A71: Hero | B71: 6 | C71: 1
A72: JimmyxNguyen | B72: 36 | C72: 1
A73: rockmuse | B73: 20 | C73: 1
A74: Suizidfisch | B74: 0 | C74: 1
A75: yeeyoo | B75: 4 | C75: 1
A76: Maverick | B76: 23 | C76: 1
A77: Bowzer | B77: 11 | C77: 1
A78: Bowtra | B78: 7 | C78: 1
A79: BanelingSoup | B79: 16 | C79: 1
A80: STEW | B80: 48 | C80: 1
A81: TheAce | B81: 4 | C81: 1
A82: XenomoRff | B82: 21 | C82: 1
A83: FouG | B83: 18 | C83: 1
A84: JOKER | B84: 8 | C84: 1
A85: CosmicZombie | B85: 21 | C85: 1
A86: AlphaXQ | B86: 25 | C86: 1
A87: FrozenGoose | B87: 50 | C87: 1
A88: PAWcobra | B88: 12 | C88: 1
A89: Survive | B89: 5 | C89: 1
A90: TeeT | B90: 0 | C90: 1
A91: shm | B91: 10 | C91: 1
A92: Entropy | B92: 34 | C92: 1
A93: AcasonavCA | B93: 4 | C93: 1
A94: Sundawgsmexy | B94: 11 | C94: 1
A95: STEN | B95: 10 | C95: 1
A96: chatoworld | B96: 34 | C96: 1
A97: Omega | B97: 5 | C97: 1
A98: Jamie | B98: 49 | C98: 1
A99: GoodbyeKitty | B99: 5 | C99: 1
A100: Sam | B100: 11 | C100: 1
A101: starwarrior | B101: 3 | C101: 1
A102: themadnoah | B102: 6 | C102: 1
A103: Marty | B103: 7 | C103: 1
A104: Coldlight | B104: 23 | C104: 1
A105: Ignis | B105: 7 | C105: 1
A106: RicoGZP | B106: 10 | C106: 1
A107: Guss | B107: 10 | C107: 1
A108: detranis | B108: 5 | C108: 1
A109: James | B109: 17 | C109: 1
A110: Superuvita | B110: 7 | C110: 1
A111: Caetus | B111: 10 | C111: 1
A112: DragonRabbit | B112: 50 | C112: 1
A113: Blackcat | B113: 6 | C113: 1
A114: AluDark | B114: 13 | C114: 1
A115: KaoZ | B115: 31 | C115: 1
A116: Lamashtu | B116: 6 | C116: 1
A117: SavingFerris | B117: 52 | C117: 1
A118: xpfighter | B118: 18 | C118: 1
A119: GenetiKs | B119: 4 | C119: 1
A120: Blank | B120: 5 | C120: 1
A121: Waffle | B121: 12 | C121: 1
A122: Ink | B122: 16 | C122: 1
A123: JonathanJsm | B123: 21 | C123: 1
A124: HaohMaRu | B124: 9 | C124: 1
A125: Teeks | B125: 2 | C125: 1
A126: somebodyhigh | B126: 19 | C126: 1
A127: KaiserNet | B127: 4 | C127: 1
A128: StuGriffin | B128: 48 | C128: 1
A129: tonbob | B129: 4 | C129: 1
A130: RhYsE | B130: 14 | C130: 1
A131: Vake | B131: 8 | C131: 1
A132: KillCredit | B132: 5 | C132: 1
A133: Vates | B133: 21 | C133: 1
A134: StratOS | B134: 6 | C134: 1
A135: rlaWlWldjfls | B135: 2 | C135: 1
A136: Dealer | B136: 2 | C136: 1
A137: arvso | B137: 51 | C137: 1
A138: BoPelini | B138: 5 | C138: 1
A139: Rain | B139: 0 | C139: 1
A140: kentin | B140: 11 | C140: 1
A141: Hylander | B141: 35 | C141: 1
A142: Raivax | B142: 11 | C142: 1
A143: Cureghemamer | B143: 9 | C143: 1
A144: MáKrómáräüDë | B144: 8 | C144: 1
A145: Enialis | B145: 0 | C145: 1
A146: MauKC | B146: 10 | C146: 1
A147: Relyks | B147: 39 | C147: 1
A148: THORwagner | B148: 6 | C148: 1
A149: RiceKrispies | B149: 5 | C149: 1
A150: Raiyn | B150: 6 | C150: 1
A151: OpenChan | B151: 16 | C151: 1
A152: INnoVation | B152: 52 | C152: 1
A153: thromBuS | B153: 8 | C153: 1
A154: Scorer | B154: 7 | C154: 1
A155: ZergOP | B155: 27 | C155: 1
A156: Deepfrost | B156: 33 | C156: 1
A157: DefilerZ | B157: 26 | C157: 1
A158: loveyourcash | B158: 9 | C158: 1
A159: Archnimzo | B159: 6 | C159: 1
A160: GareBear | B160: 36 | C160: 1
A161: Rym | B161: 24 | C161: 1
A162: athreat | B162: 15 | C162: 1
A163: Eze | B163: 2 | C163: 1
A164: Bryto | B164: 9 | C164: 1
A165: Castor | B165: 37 | C165: 1
A166: OgreThanYou | B166: 9 | C166: 1
A167: Debut | B167: 6 | C167: 1
A168: DoggShizzlle | B168: 20 | C168: 1
A169: thekilerzerg | B169: 87 | C169: 1
A170: Nonis | B170: 3 | C170: 1
A171: RiverNa | B171: 23 | C171: 1
A172: Ntwadumela | B172: 19 | C172: 1
A173: mati | B173: 31 | C173: 1
A174: Crucial | B174: 21 | C174: 1
A175: hawkes | B175: 22 | C175: 1
A176: bloodkawa | B176: 6 | C176: 1
A177: Chenchen | B177: 8 | C177: 1
A178: plAggie | B178: 1 | C178: 1
A179: Dejanigma | B179: 15 | C179: 1
A180: buiutripa | B180: 85 | C180: 1
A181: Seanskie | B181: 5 | C181: 1
A182: GreenMachine | B182: 19 | C182: 1
A183: Weizy | B183: 12 | C183: 1
A184: IdleSCV | B184: 1 | C184: 1
A185: Dream | B185: 28 | C185: 1
A186: Kreator | B186: 40 | C186: 1
A187: GahzzaX | B187: 23 | C187: 1
A188: llllllllllll | B188: 21 | C188: 1
A189: DarKSnakE | B189: 5 | C189: 1
A190: ManneRBeeR | B190: 34 | C190: 1
A191: Centipede | B191: 37 | C191: 1
A192: Zergster | B192: 21 | C192: 1
A193: teamST | B193: 30 | C193: 1
A194: Flice | B194: 8 | C194: 1
A195: Marvel | B195: 26 | C195: 1
A196: AlexeiStukov | B196: 84 | C196: 1
A197: VasperKnight | B197: 7 | C197: 1
A198: bantumamba | B198: 3 | C198: 1
A199: cyberstorm | B199: 12 | C199: 1
A200: bmack | B200: 7 | C200: 1
... 4300 more rows

Sheet Platinum
A1: Rain | B1: 8 | C1: 1
A2: wuning | B2: 2 | C2: 1
A3: Fartbox | B3: 11 | C3: 1
A4: Jah | B4: 10 | C4: 1
A5: GookBangBoo | B5: 18 | C5: 1
A6: Disto | B6: 6 | C6: 1
A7: RaNdOm | B7: 9 | C7: 1
A8: Automatic | B8: 9 | C8: 1
A9: Dawner | B9: 5 | C9: 1
A10: UNinstalll | B10: 0 | C10: 1
A11: Alpha | B11: 32 | C11: 1
A12: MugreMario | B12: 20 | C12: 1
A13: SOpsGiuseppe | B13: 18 | C13: 1
A14: Sieskas | B14: 38 | C14: 1
A15: Jaws | B15: 13 | C15: 1
A16: whizdumb | B16: 7 | C16: 1
A17: tablecables | B17: 9 | C17: 1
A18: jarjar | B18: 4 | C18: 1
A19: fZero | B19: 14 | C19: 1
A20: matheux | B20: 9 | C20: 1
A21: Sunderer | B21: 10 | C21: 1
A22: Nonzero | B22: 6 | C22: 1
A23: DanMMX | B23: 18 | C23: 1
A24: Orkna | B24: 3 | C24: 1
A25: Filthyrich | B25: 8 | C25: 1
A26: Legacy | B26: 8 | C26: 1
A27: LimpidCabal | B27: 30 | C27: 1
A28: Sherlock | B28: 3 | C28: 1
A29: vatix | B29: 2 | C29: 1
A30: Thel | B30: 9 | C30: 1
A31: Sonofwar | B31: 1 | C31: 1
A32: Stryker | B32: 34 | C32: 1
A33: Foxbat | B33: 4 | C33: 1
A34: Chaotic | B34: 7 | C34: 1
A35: Golgotha | B35: 11 | C35: 1
A36: AGGZdario | B36: 33 | C36: 1
A37: HeroSandwich | B37: 9 | C37: 1
A38: SONADEI | B38: 10 | C38: 1
A39: SkyRiver | B39: 10 | C39: 1
A40: PrintSC | B40: 3 | C40: 1
A41: bmingAgain | B41: 25 | C41: 1
A42: RickyBobee | B42: 36 | C42: 1
A43: Astralwalker | B43: 12 | C43: 1
A44: BoNanner | B44: 16 | C44: 1
A45: Prevolution | B45: 24 | C45: 1
A46: IIIIIIIIIIII | B46: 3 | C46: 1
A47: Crisis | B47: 6 | C47: 1
A48: MDM | B48: 8 | C48: 1
A49: davo | B49: 4 | C49: 1
A50: Nomad | B50: 1 | C50: 1
A51: Cliff | B51: 2 | C51: 1
A52: NeoGenocide | B52: 2 | C52: 1
A53: Obsidian | B53: 20 | C53: 1
A54: FamilyAcount | B54: 5 | C54: 1
A55: SirThaddeous | B55: 6 | C55: 1
A56: Volkmer | B56: 29 | C56: 1
A57: Derpdaflerp | B57: 29 | C57: 1
A58: Roman | B58: 15 | C58: 1
A59: Stone | B59: 26 | C59: 1
A60: rogl | B60: 9 | C60: 1
A61: Spoon | B61: 10 | C61: 1
A62: sswdavid | B62: 38 | C62: 1
A63: kingSELAH | B63: 14 | C63: 1
A64: IronLung | B64: 6 | C64: 1
A65: FaRrAtH | B65: 22 | C65: 1
A66: swtnycboy | B66: 19 | C66: 1
A67: PocketAces | B67: 8 | C67: 1
A68: SouLess | B68: 54 | C68: 1
A69: chudatta | B69: 34 | C69: 1
A70: zusch | B70: 13 | C70: 1
A71: ElvisFreshly | B71: 5 | C71: 1
A72: Dir | B72: 40 | C72: 1
A73: VellyVel | B73: 7 | C73: 1
A74: MauriceGibb | B74: 42 | C74: 1
A75: BoxeR | B75: 1 | C75: 1
A76: IIIIIIIIIIII | B76: 25 | C76: 1
A77: RabbiT | B77: 7 | C77: 1
A78: WaspVenoM | B78: 8 | C78: 1
A79: Kraken | B79: 21 | C79: 1
A80: Rustypipe | B80: 21 | C80: 1
A81: Villain | B81: 43 | C81: 1
A82: MingEx | B82: 2 | C82: 1
A83: AyeArvey | B83: 12 | C83: 1
A84: Orange | B84: 3 | C84: 1
A85: Jupiter | B85: 36 | C85: 1
A86: TedBundy | B86: 10 | C86: 1
A87: sunshine | B87: 44 | C87: 1
A88: Sly | B88: 29 | C88: 1
A89: MuMPiTz | B89: 7 | C89: 1
A90: AlphaNumeric | B90: 24 | C90: 1
A91: spectre | B91: 54 | C91: 1
A92: Ahaltocob | B92: 15 | C92: 1
A93: TearEmBug | B93: 33 | C93: 1
A94: SnugglyBear | B94: 6 | C94: 1
A95: Regression | B95: 8 | C95: 1
A96: Regression | B96: 8 | C96: 1
A97: MatrikZ | B97: 4 | C97: 1
A98: Aellerian | B98: 9 | C98: 1
A99: Hades | B99: 38 | C99: 1
A100: DarthNerd | B100: 4 | C100: 1
A101: nanopete | B101: 3 | C101: 1
A102: ElMaty | B102: 3 | C102: 1
A103: Tribe | B103: 3 | C103: 1
A104: Previous | B104: 50 | C104: 1
A105: jonarlo | B105: 34 | C105: 1
A106: MoltoVivace | B106: 10 | C106: 1
A107: exp | B107: 45 | C107: 1
A108: zxcasd | B108: 4 | C108: 1
A109: Paullex | B109: 9 | C109: 1
A110: Zemorse | B110: 3 | C110: 1
A111: Naniwa | B111: 30 | C111: 1
A112: LuffyDmonkey | B112: 14 | C112: 1
A113: Blade | B113: 50 | C113: 1
A114: XHH | B114: 0 | C114: 1
A115: CurryBomb | B115: 7 | C115: 1
A116: Roxa | B116: 4 | C116: 1
A117: NineTyme | B117: 9 | C117: 1
A118: Tryharddie | B118: 40 | C118: 1
A119: Limitless | B119: 16 | C119: 1
A120: sOs | B120: 13 | C120: 1
A121: FORESTMEN | B121: 16 | C121: 1
A122: Bur | B122: 3 | C122: 1
A123: Matthew | B123: 1 | C123: 1
A124: hamamatsu | B124: 0 | C124: 1
A125: Kensai | B125: 31 | C125: 1
A126: Tanz | B126: 3 | C126: 1
A127: Ghost | B127: 19 | C127: 1
A128: brx | B128: 16 | C128: 1
A129: HazurD | B129: 39 | C129: 1
A130: EDIT | B130: 43 | C130: 1
A131: Zeratai | B131: 6 | C131: 1
A132: IMNesTea | B132: 19 | C132: 1
A133: OnlineDating | B133: 4 | C133: 1
A134: HeresiarcH | B134: 19 | C134: 1
A135: AnewDon | B135: 8 | C135: 1
A136: IllicitDoS | B136: 4 | C136: 1
A137: LeeroyJenkns | B137: 8 | C137: 1
A138: Fornax | B138: 5 | C138: 1
A139: Trazyn | B139: 7 | C139: 1
A140: BigmaC | B140: 21 | C140: 1
A141: MaRineKing | B141: 11 | C141: 1
A142: smoke | B142: 12 | C142: 1
A143: basics | B143: 0 | C143: 1
A144: Botiz | B144: 17 | C144: 1
A145: Helo | B145: 4 | C145: 1
A146: Shingo | B146: 7 | C146: 1
A147: Helado | B147: 18 | C147: 1
A148: Freia | B148: 41 | C148: 1
A149: JFGilbert | B149: 6 | C149: 1
A150: SainT | B150: 6 | C150: 1
A151: Vesuva | B151: 3 | C151: 1
A152: Arob | B152: 3 | C152: 1
A153: nightshark | B153: 55 | C153: 1
A154: KayZeR | B154: 11 | C154: 1
A155: Chaos | B155: 5 | C155: 1
A156: Ogmios | B156: 11 | C156: 1
A157: Hebeejeebies | B157: 23 | C157: 1
A158: LOSER | B158: 6 | C158: 1
A159: JiveTurkey | B159: 3 | C159: 1
A160: conspiracy | B160: 3 | C160: 1
A161: nightFurry | B161: 12 | C161: 1
A162: Ghostwriter | B162: 17 | C162: 1
A163: Zames | B163: 18 | C163: 1
A164: Spork | B164: 5 | C164: 1
A165: Thrive | B165: 65 | C165: 1
A166: Bawss | B166: 6 | C166: 1
A167: Osiris | B167: 1 | C167: 1
A168: goreanddin | B168: 3 | C168: 1
A169: KITE | B169: 5 | C169: 1
A170: ComPote | B170: 12 | C170: 1
A171: AirSpiLL | B171: 9 | C171: 1
A172: Tysunami | B172: 14 | C172: 1
A173: Villain | B173: 33 | C173: 1
A174: JunZergCola | B174: 1 | C174: 1
A175: DrVernunft | B175: 15 | C175: 1
A176: Dino | B176: 20 | C176: 1
A177: erisalit | B177: 19 | C177: 1
A178: Ose | B178: 4 | C178: 1
A179: Morgathar | B179: 89 | C179: 1
A180: Trapintime | B180: 38 | C180: 1
A181: SkinnyPhilly | B181: 8 | C181: 1
A182: SpaCe | B182: 0 | C182: 1
A183: Alejosoldier | B183: 5 | C183: 1
A184: SuPREME | B184: 8 | C184: 1
A185: Asamov | B185: 7 | C185: 1
A186: Rony | B186: 5 | C186: 1
A187: ricky | B187: 15 | C187: 1
A188: ImmortaLz | B188: 27 | C188: 1
A189: Manimal | B189: 5 | C189: 1
A190: Apt | B190: 0 | C190: 1
A191: fiveQ | B191: 3 | C191: 1
A192: Zen | B192: 98 | C192: 1
A193: EnV | B193: 14 | C193: 1
A194: duq | B194: 6 | C194: 1
A195: MajiN | B195: 14 | C195: 1
A196: Shon | B196: 12 | C196: 1
A197: UdinF | B197: 56 | C197: 1
A198: MahlerG | B198: 7 | C198: 1
A199: Zombi | B199: 4 | C199: 1
A200: Sinme | B200: 11 | C200: 1
... 15082 more rows

Sheet Diamond
A1: connerly | B1: 7 | C1: 1
A2: Nova | B2: 31 | C2: 1
A3: seath | B3: 0 | C3: 1
A4: Yaegz | B4: 5 | C4: 1
A5: Gsus | B5: 1 | C5: 1
A6: Destroyer | B6: 25 | C6: 1
A7: Konviction | B7: 13 | C7: 1
A8: TenaciousDG | B8: 1 | C8: 1
A9: Tempest | B9: 4 | C9: 1
A10: Papulatus | B10: 4 | C10: 1
A11: grepStar | B11: 19 | C11: 1
A12: Signal | B12: 11 | C12: 1
A13: TyrantJunior | B13: 7 | C13: 1
A14: KSdarkThor | B14: 4 | C14: 1
A15: Wrath | B15: 26 | C15: 1
A16: Stephano | B16: 18 | C16: 1
A17: IlIlIlIlIlII | B17: 15 | C17: 1
A18: Sytrept | B18: 1 | C18: 1
A19: Ohayoo | B19: 0 | C19: 1
A20: DeadSaint | B20: 29 | C20: 1
A21: Dreamer | B21: 8 | C21: 1
A22: Lacuna | B22: 8 | C22: 1
A23: Cephei | B23: 3 | C23: 1
A24: Elitist | B24: 4 | C24: 1
A25: Acronym | B25: 12 | C25: 1
A26: Krash | B26: 56 | C26: 1
A27: Soul | B27: 22 | C27: 1
A28: Starbelly | B28: 7 | C28: 1
A29: ZenGamr | B29: 5 | C29: 1
A30: PkRED | B30: 40 | C30: 1
A31: LiskLisk | B31: 31 | C31: 1
A32: llllllllllll | B32: 35 | C32: 1
A33: pepo | B33: 27 | C33: 1
A34: Psych | B34: 8 | C34: 1
A35: IIIIIIIIIIII | B35: 1 | C35: 1
A36: Adept | B36: 2 | C36: 1
A37: oPZesty | B37: 22 | C37: 1
A38: Tenzin | B38: 10 | C38: 1
A39: veKtory | B39: 27 | C39: 1
A40: CallMeMVP | B40: 16 | C40: 1
A41: miLKiSS | B41: 62 | C41: 1
A42: Lavos | B42: 11 | C42: 1
A43: Acolyte | B43: 30 | C43: 1
A44: Kesai | B44: 2 | C44: 1
A45: FUNBOX | B45: 4 | C45: 1
A46: MrNinja | B46: 8 | C46: 1
A47: eNtitY | B47: 34 | C47: 1
A48: beans | B48: 2 | C48: 1
A49: Claire | B49: 15 | C49: 1
A50: DaRkHaZarD | B50: 10 | C50: 1
A51: llllIllIllll | B51: 40 | C51: 1
A52: majikuKaitO | B52: 11 | C52: 1
A53: teamFuarkYOU | B53: 9 | C53: 1
A54: Tyler | B54: 76 | C54: 1
A55: llllllllllll | B55: 85 | C55: 1
A56: Semarrius | B56: 31 | C56: 1
A57: isuckwiener | B57: 50 | C57: 1
A58: gatsby | B58: 4 | C58: 1
A59: YasirOh | B59: 3 | C59: 1
A60: GhostShadow | B60: 3 | C60: 1
A61: Jeffster | B61: 10 | C61: 1
A62: Tosstradamus | B62: 19 | C62: 1
A63: Lando | B63: 4 | C63: 1
A64: MrLando | B64: 6 | C64: 1
A65: SoMadYouRage | B65: 5 | C65: 1
A66: conan | B66: 6 | C66: 1
A67: shmoo | B67: 7 | C67: 1
A68: OrAnge | B68: 5 | C68: 1
A69: llllllllllll | B69: 20 | C69: 1
A70: Neighbor | B70: 10 | C70: 1
A71: Scorber | B71: 10 | C71: 1
A72: PapaZero | B72: 45 | C72: 1
A73: eXoBLaZeR | B73: 6 | C73: 1
A74: Swifty | B74: 9 | C74: 1
A75: Noctis | B75: 6 | C75: 1
A76: BAKEDyetRAW | B76: 36 | C76: 1
A77: Solar | B77: 2 | C77: 1
A78: KobeSystem | B78: 18 | C78: 1
A79: TheKing | B79: 5 | C79: 1
A80: nateasaurus | B80: 48 | C80: 1
A81: Varithus | B81: 7 | C81: 1
A82: sky | B82: 25 | C82: 1
A83: InnoVatoR | B83: 6 | C83: 1
A84: ThEraXis | B84: 6 | C84: 1
A85: Veniar | B85: 8 | C85: 1
A86: BudaeJJigae | B86: 9 | C86: 1
A87: KhaoS | B87: 5 | C87: 1
A88: KingHydra | B88: 5 | C88: 1
A89: SGPostIT | B89: 9 | C89: 1
A90: BlueRibbonQc | B90: 35 | C90: 1
A91: Sharpflex | B91: 0 | C91: 1
A92: NanoVapor | B92: 1 | C92: 1
A93: Slumlord | B93: 9 | C93: 1
A94: Twingster | B94: 23 | C94: 1
A95: Rooo | B95: 34 | C95: 1
A96: Blazer | B96: 7 | C96: 1
A97: MassiveAir | B97: 49 | C97: 1
A98: PrimusDeskia | B98: 48 | C98: 1
A99: Exogene | B99: 36 | C99: 1
A100: Exceed | B100: 7 | C100: 1
A101: Roach | B101: 10 | C101: 1
A102: KINtoYou | B102: 12 | C102: 1
A103: sooch | B103: 49 | C103: 1
A104: Ferran | B104: 23 | C104: 1
A105: Trickster | B105: 22 | C105: 1
A106: SkyNine | B106: 1 | C106: 1
A107: TheNewblar | B107: 8 | C107: 1
A108: Vachalait | B108: 38 | C108: 1
A109: Drinksarlot | B109: 3 | C109: 1
A110: Furbiford | B110: 19 | C110: 1
A111: TheGarmBrood | B111: 32 | C111: 1
A112: Echoic | B112: 2 | C112: 1
A113: NfinITE | B113: 18 | C113: 1
A114: FleshLess | B114: 4 | C114: 1
A115: Sketchy | B115: 23 | C115: 1
A116: Calc | B116: 5 | C116: 1
A117: Videoboy | B117: 12 | C117: 1
A118: meat | B118: 4 | C118: 1
A119: Totti | B119: 71 | C119: 1
A120: PDizz | B120: 6 | C120: 1
A121: Shalashaka | B121: 21 | C121: 1
A122: Zoure | B122: 5 | C122: 1
A123: Monkey | B123: 9 | C123: 1
A124: Proleuhis | B124: 180 | C124: 2
A125: Klaue | B125: 7 | C125: 1
A126: Chiky | B126: 41 | C126: 1
A127: gopher | B127: 15 | C127: 1
A128: SKYTOSS | B128: 2 | C128: 1
A129: cloud | B129: 3 | C129: 1
A130: ToiletFinder | B130: 52 | C130: 1
A131: KOali | B131: 7 | C131: 1
A132: Fallen | B132: 0 | C132: 1
A133: Loconess | B133: 5 | C133: 1
A134: Switch | B134: 23 | C134: 1
A135: Knar | B135: 11 | C135: 1
A136: Trinric | B136: 10 | C136: 1
A137: MyronGaines | B137: 18 | C137: 1
A138: PhoenixBlaze | B138: 1 | C138: 1
A139: BcuzofuProS | B139: 60 | C139: 1
A140: Evenstar | B140: 5 | C140: 1
A141: BlackMEsa | B141: 22 | C141: 1
A142: Mon | B142: 53 | C142: 1
A143: JoNaS | B143: 3 | C143: 1
A144: xavengeancex | B144: 77 | C144: 1
A145: mYthRender | B145: 33 | C145: 1
A146: Biyaam | B146: 18 | C146: 1
A147: EzUS | B147: 80 | C147: 1
A148: ClockWise | B148: 18 | C148: 1
A149: Napoleon | B149: 55 | C149: 1
A150: KevinBacon | B150: 16 | C150: 1
A151: IIIIIIIIII | B151: 5 | C151: 1
A152: DiiViNe | B152: 4 | C152: 1
A153: Starichok | B153: 4 | C153: 1
A154: SoaDogS | B154: 10 | C154: 1
A155: IIIIIIIIIIII | B155: 8 | C155: 1
A156: GAMEOver | B156: 20 | C156: 1
A157: rhythMsurfer | B157: 6 | C157: 1
A158: VISA | B158: 2 | C158: 1
A159: MrHobo | B159: 25 | C159: 1
A160: Slayer | B160: 1 | C160: 1
A161: IIIIIllllll | B161: 2 | C161: 1
A162: Kangaroosack | B162: 6 | C162: 1
A163: lokes | B163: 79 | C163: 1
A164: Hybillisk | B164: 5 | C164: 1
A165: WinterSC | B165: 0 | C165: 1
A166: Aspect | B166: 6 | C166: 1
A167: briancooklol | B167: 33 | C167: 1
A168: peewe | B168: 51 | C168: 1
A169: wtfoodge | B169: 32 | C169: 1
A170: DeedBack | B170: 4 | C170: 1
A171: whitE | B171: 26 | C171: 1
A172: KiNGRaB | B172: 18 | C172: 1
A173: Sketch | B173: 7 | C173: 1
A174: qwert | B174: 57 | C174: 1
A175: Troll | B175: 6 | C175: 1
A176: theWalrus | B176: 4 | C176: 1
A177: Casey | B177: 4 | C177: 1
A178: Neruda | B178: 2 | C178: 1
A179: ElegancE | B179: 4 | C179: 1
A180: CreamStew | B180: 8 | C180: 1
A181: Flamm | B181: 13 | C181: 1
A182: Micromancer | B182: 38 | C182: 1
A183: prOkilleR | B183: 12 | C183: 1
A184: MKPPrime | B184: 21 | C184: 1
A185: Original | B185: 9 | C185: 1
A186: Gaofushuai | B186: 14 | C186: 1
A187: Achillez | B187: 19 | C187: 1
A188: BsKCoto | B188: 20 | C188: 1
A189: Arcas | B189: 3 | C189: 1
A190: Kaden | B190: 2 | C190: 1
A191: YYYYMMDD | B191: 9 | C191: 1
A192: Saku | B192: 74 | C192: 1
A193: coa | B193: 1 | C193: 1
A194: Dubious | B194: 0 | C194: 1
A195: FeaR | B195: 83 | C195: 1
A196: nOs | B196: 2 | C196: 1
A197: Killboy | B197: 6 | C197: 1
A198: skypig | B198: 2 | C198: 1
A199: abmeister | B199: 2 | C199: 1
A200: smokeischeap | B200: 10 | C200: 1
... 11260 more rows

Sheet Master
A1: AxRyung | B1: 177 | C1: 1
A2: Positive | B2: 259 | C2: 2
A3: babo | B3: 396 | C3: 3
A4: lIlIIllIIllI | B4: 191 | C4: 2
A5: Roy | B5: 4 | C5: 1
A6: Believe | B6: 9 | C6: 1
A7: HackticeX | B7: 5 | C7: 1
A8: IIIIIIIIII | B8: 15 | C8: 1
A9: MygraiN | B9: 18 | C9: 1
A10: llllllllll | B10: 29 | C10: 1
A11: Virus | B11: 1 | C11: 1
A12: RedStone | B12: 96 | C12: 1
A13: viOLet | B13: 402 | C13: 3
A14: Sanctuary | B14: 6 | C14: 1
A15: Htw | B15: 6 | C15: 1
A16: Berserkforce | B16: 11 | C16: 1
A17: akira | B17: 5 | C17: 1
A18: Sushi | B18: 36 | C18: 1
A19: Raistlin | B19: 1 | C19: 1
A20: llllllllllll | B20: 20 | C20: 1
A21: Nakoz | B21: 5 | C21: 1
A22: Vies | B22: 141 | C22: 1
A23: YoutoPia | B23: 226 | C23: 2
A24: ElFatal | B24: 17 | C24: 1
A25: PappiJoe | B25: 9 | C25: 1
A26: KiFirE | B26: 9 | C26: 1
A27: Pox | B27: 11 | C27: 1
A28: IIIIllllIIll | B28: 28 | C28: 1
A29: Xaoke | B29: 469 | C29: 3
A30: IamMagic | B30: 6 | C30: 1
A31: Krul | B31: 7 | C31: 1
A32: RedViper | B32: 75 | C32: 1
A33: Freizya | B33: 23 | C33: 1
A34: Jimmeh | B34: 13 | C34: 1
A35: Kevin | B35: 45 | C35: 1
A36: Backtothis | B36: 120 | C36: 1
A37: scv | B37: 30 | C37: 1
A38: imeurotrash | B38: 12 | C38: 1
A39: TenderThighs | B39: 7 | C39: 1
A40: ZoeyDeschanl | B40: 17 | C40: 1
A41: NerdStompeR | B41: 12 | C41: 1
A42: lIlIlIlIlIlI | B42: 182 | C42: 2
A43: IIIIIIIIIIII | B43: 5 | C43: 1
A44: PrimalMoon | B44: 13 | C44: 1
A45: BadVibes | B45: 15 | C45: 1
A46: Maharishi | B46: 55 | C46: 1
A47: AegiS | B47: 9 | C47: 1
A48: HuShang | B48: 35 | C48: 1
A49: Button | B49: 29 | C49: 1
A50: lllIIIlllIIl | B50: 1 | C50: 1
A51: Autumn | B51: 40 | C51: 1
A52: Nyden | B52: 28 | C52: 1
A53: GosuBisu | B53: 37 | C53: 1
A54: WinD | B54: 37 | C54: 1
A55: EGG | B55: 29 | C55: 1
A56: LoraX | B56: 2 | C56: 1
A57: NoBleSse | B57: 29 | C57: 1
A58: IIIIIIIIIIII | B58: 48 | C58: 1
A59: GhOsT | B59: 1 | C59: 1
A60: Aidan | B60: 36 | C60: 1
A61: Emyndri | B61: 7 | C61: 1
A62: TheTRUTH | B62: 86 | C62: 1
A63: TRAGIC | B63: 36 | C63: 1
A64: Nistic | B64: 76 | C64: 1
A65: Cookies | B65: 45 | C65: 1
A66: EndOfLine | B66: 81 | C66: 1
A67: IIIIIIIIIIII | B67: 0 | C67: 1
A68: Heafy | B68: 55 | C68: 1
A69: MoMaN | B69: 41 | C69: 1
A70: OuTLaW | B70: 1 | C70: 1
A71: PoorPotato | B71: 0 | C71: 1
A72: StoicNonY | B72: 500 | C72: 3
A73: patnessdark | B73: 36 | C73: 1
A74: IIIIIIIIIIII | B74: 441 | C74: 3
A75: Android | B75: 9 | C75: 1
A76: Gladiator | B76: 64 | C76: 1
A77: SwifTFiRe | B77: 10 | C77: 1
A78: Jotem | B78: 62 | C78: 1
A79: JuliusSeizur | B79: 22 | C79: 1
A80: lIIIlIIIIIll | B80: 57 | C80: 1
A81: aeontech | B81: 227 | C81: 2
A82: MystiC | B82: 5 | C82: 1
A83: IlIlIlIlIlIl | B83: 349 | C83: 2
A84: Krewella | B84: 0 | C84: 1
A85: Neuro | B85: 8 | C85: 1
A86: bullet | B86: 269 | C86: 2
A87: Pseudorandom | B87: 30 | C87: 1
A88: llllllllllll | B88: 6 | C88: 1
A89: hale | B89: 494 | C89: 3
A90: TippyTurtle | B90: 4 | C90: 1
A91: JiYeon | B91: 185 | C91: 2
A92: HLH | B92: 154 | C92: 1
A93: Bop | B93: 30 | C93: 1
A94: Rivera | B94: 203 | C94: 2
A95: Dolan | B95: 197 | C95: 2
A96: Sleeper | B96: 87 | C96: 1
A97: Bleikz | B97: 14 | C97: 1
A98: CealeR | B98: 26 | C98: 1
A99: GRASScutter | B99: 6 | C99: 1
A100: Zark | B100: 281 | C100: 2
A101: Nero | B101: 2 | C101: 1
A102: Gool | B102: 5 | C102: 1
A103: Pinky | B103: 8 | C103: 1
A104: IlIIIllIlIIl | B104: 2 | C104: 1
A105: Zen | B105: 173 | C105: 1
A106: Cube | B106: 231 | C106: 2
A107: LeviathaN | B107: 56 | C107: 1
A108: chobosniper | B108: 21 | C108: 1
A109: Jowj | B109: 14 | C109: 1
A110: Dedication | B110: 123 | C110: 1
A111: ReQuieM | B111: 127 | C111: 1
A112: coLDeathEnD | B112: 296 | C112: 2
A113: Akroz | B113: 4 | C113: 1
A114: TerraN | B114: 4 | C114: 1
A115: Caliber | B115: 385 | C115: 3
A116: Fear | B116: 9 | C116: 1
A117: TMjpg | B117: 180 | C117: 1
A118: Kicker | B118: 9 | C118: 1
A119: FalcaoDoidao | B119: 4 | C119: 1
A120: MythiC | B120: 238 | C120: 2
A121: RuMCaKe | B121: 10 | C121: 1
A122: Mandalore | B122: 23 | C122: 1
A123: IIIIIIIIIIII | B123: 46 | C123: 1
A124: Lightning | B124: 73 | C124: 1
A125: Hyouka | B125: 39 | C125: 1
A126: vanSanity | B126: 360 | C126: 2
A127: MaekMarien | B127: 445 | C127: 3
A128: SiegeMode | B128: 6 | C128: 1
A129: IIIIIIIIIIII | B129: 15 | C129: 1
A130: Jessica | B130: 157 | C130: 1
A131: RiseWillis | B131: 4 | C131: 1
A132: ChuckFinley | B132: 326 | C132: 2
A133: pzychO | B133: 89 | C133: 1
A134: Wupunpun | B134: 210 | C134: 2
A135: Hotlips | B135: 49 | C135: 1
A136: spaceballz | B136: 61 | C136: 1
A137: Fiend | B137: 338 | C137: 2
A138: MelOn | B138: 382 | C138: 3
A139: Rosso | B139: 199 | C139: 2
A140: VIP | B140: 20 | C140: 1
A141: Curse | B141: 354 | C141: 2
A142: nickyboy | B142: 8 | C142: 1
A143: llllllllllll | B143: 9 | C143: 1
A144: KoopA | B144: 11 | C144: 1
A145: Starbuck | B145: 686 | C145: 4
A146: sigol | B146: 3 | C146: 1
A147: SusanCoffey | B147: 589 | C147: 4
A148: Ehre | B148: 11 | C148: 1
A149: Wrath | B149: 160 | C149: 1
A150: tGNoStrA | B150: 110 | C150: 1
A151: MinAh | B151: 30 | C151: 1
A152: LiviBee | B152: 68 | C152: 1
A153: DoctorC | B153: 244 | C153: 2
A154: Deadzerg | B154: 58 | C154: 1
A155: Despiron | B155: 162 | C155: 1
A156: Starlight | B156: 9 | C156: 1
A157: summer | B157: 38 | C157: 1
A158: IrishLad | B158: 81 | C158: 1
A159: Pistoletov | B159: 148 | C159: 1
A160: DarKicE | B160: 30 | C160: 1
A161: Tyranus | B161: 13 | C161: 1
A162: lIlIlIIIIIII | B162: 45 | C162: 1
A163: Crilmon | B163: 44 | C163: 1
A164: Renard | B164: 469 | C164: 3
A165: Lancel | B165: 138 | C165: 1
A166: strobot | B166: 11 | C166: 1
A167: Delta | B167: 19 | C167: 1
A168: llllllllll | B168: 1 | C168: 1
A169: IIIlllIllI | B169: 176 | C169: 1
A170: tonho | B170: 60 | C170: 1
A171: OppOb | B171: 195 | C171: 2
A172: MulTiSwifT | B172: 132 | C172: 1
A173: Kamker | B173: 330 | C173: 2
A174: ColWombaT | B174: 32 | C174: 1
A175: Goliath | B175: 344 | C175: 2
A176: Ayla | B176: 705 | C176: 4
A177: DayaL | B177: 104 | C177: 1
A178: glad | B178: 121 | C178: 1
A179: MrPandaPants | B179: 135 | C179: 1
A180: Cocoon | B180: 20 | C180: 1
A181: scorobei | B181: 14 | C181: 1
A182: TelecoM | B182: 42 | C182: 1
A183: ParalyzE | B183: 152 | C183: 1
A184: IIllIlIlIllI | B184: 250 | C184: 2
A185: IIIIIIIIIIII | B185: 13 | C185: 1
A186: Risk | B186: 39 | C186: 1
A187: Integral | B187: 154 | C187: 1
A188: Adamas | B188: 392 | C188: 3
A189: CharaDa | B189: 5 | C189: 1
A190: RoCkY | B190: 11 | C190: 1
A191: Tyrion | B191: 20 | C191: 1
A192: VanDraken | B192: 9 | C192: 1
A193: avilo | B193: 64 | C193: 1
A194: llllllllllll | B194: 263 | C194: 2
A195: Benjadeath | B195: 41 | C195: 1
A196: Sorrow | B196: 13 | C196: 1
A197: IlllllIlIllI | B197: 191 | C197: 2
A198: AHvmpingDogi | B198: 27 | C198: 1
A199: ImPaS | B199: 0 | C199: 1
A200: Zahl | B200: 12 | C200: 1
... 1847 more rows

Sheet GM
A1: Losira | B1: 6 | C1: 1
A2: lllIIIlllIlI | B2: 40 | C2: 1
A3: Hitman | B3: 9 | C3: 1
A4: Petraeus | B4: 77 | C4: 1
A5: Phog | B5: 13 | C5: 1
A6: JonSnow | B6: 11 | C6: 1
A7: Serendipity | B7: 9 | C7: 1
A8: IIIIIIIIIIII | B8: 8 | C8: 1
A9: HuK | B9: 41 | C9: 1
A10: lIllIIllIIll | B10: 30 | C10: 1
A11: Sorrow | B11: 31 | C11: 1
A12: GipsyDanger | B12: 104 | C12: 1
A13: Cham | B13: 105 | C13: 1
A14: Katana | B14: 130 | C14: 1
A15: Moosegills | B15: 6 | C15: 1
A16: IIIIIIIIIIII | B16: 30 | C16: 1
A17: Bioice | B17: 20 | C17: 1
A18: Kaitlyn | B18: 111 | C18: 1
A19: cSaroVati | B19: 5 | C19: 1
A20: ViBE | B20: 153 | C20: 1
A21: DeeMo | B21: 37 | C21: 1
A22: IIIIIIIIIIII | B22: 2 | C22: 1
A23: Lucky | B23: 5 | C23: 1
A24: ShaDoWn | B24: 19 | C24: 1
A25: ppgBubbles | B25: 4 | C25: 1
A26: LsEbA | B26: 68 | C26: 1
A27: ElhayM | B27: 66 | C27: 1
A28: llllllllllll | B28: 30 | C28: 1
A29: Trace | B29: 15 | C29: 1
A30: Starelf | B30: 3 | C30: 1
A31: sWs | B31: 4 | C31: 1
A32: IIIIIIIIIIII | B32: 23 | C32: 1
A33: BruceLee | B33: 59 | C33: 1
A34: Jimmy | B34: 13 | C34: 1
A35: llllllllllll | B35: 9 | C35: 1
A36: SpaceMarine | B36: 117 | C36: 1
A37: Kirk | B37: 30 | C37: 1
A38: Spectre | B38: 67 | C38: 1
A39: Boris | B39: 4 | C39: 1
A40: Josiah | B40: 56 | C40: 1
A41: llllllllllll | B41: 37 | C41: 1
A42: IMBACoaching | B42: 19 | C42: 1
A43: llllllllllll | B43: 18 | C43: 1
A44: Bones | B44: 53 | C44: 1
A45: Guitarcheese | B45: 106 | C45: 1
A46: David | B46: 76 | C46: 1
A47: IlIlIlIlIlIl | B47: 42 | C47: 1
A48: Baku | B48: 7 | C48: 1
A49: TheJoker | B49: 155 | C49: 1
A50: NWABroseidon | B50: 6 | C50: 1
A51: Bluemagic | B51: 15 | C51: 1
A52: duckhunt | B52: 28 | C52: 1
A53: llllllllllll | B53: 61 | C53: 1
A54: IllIIlllIlII | B54: 6 | C54: 1
A55: Fenner | B55: 29 | C55: 1
A56: PlzBuffToss | B56: 109 | C56: 1
A57: PiLiPiLi | B57: 60 | C57: 1
A58: MaGiCaL | B58: 129 | C58: 1
A59: lIllIIIlIlII | B59: 33 | C59: 1
A60: Kreos | B60: 31 | C60: 1
A61: Pluto | B61: 25 | C61: 1
A62: llllllllllll | B62: 15 | C62: 1
A63: Atomic | B63: 9 | C63: 1
A64: llllllllllll | B64: 105 | C64: 1
A65: Titania | B65: 58 | C65: 1
A66: EJK | B66: 38 | C66: 1
A67: Schnieder | B67: 9 | C67: 1
A68: Loraine | B68: 97 | C68: 1
A69: ReGoR | B69: 114 | C69: 1
A70: LiquidFire | B70: 5 | C70: 1
A71: FATALBUNNY | B71: 20 | C71: 1
A72: hoaxBoaTe | B72: 156 | C72: 1
A73: Siphonn | B73: 16 | C73: 1
A74: PandaBearMe | B74: 10 | C74: 1
A75: LeGeND | B75: 8 | C75: 1
A76: IIIIIIIIIIII | B76: 118 | C76: 1
A77: BestPinSEA | B77: 20 | C77: 1
A78: komandirskie | B78: 20 | C78: 1
A79: Tyga | B79: 47 | C79: 1
A80: llllllllllll | B80: 20 | C80: 1
A81: Zan | B81: 28 | C81: 1
A82: Snake | B82: 52 | C82: 1
A83: TheoRy | B83: 107 | C83: 1
A84: llllllllllll | B84: 16 | C84: 1
A85: rsvp | B85: 54 | C85: 1
A86: FIGARO | B86: 20 | C86: 1
A87: RuFF | B87: 4 | C87: 1
A88: Kelazhur | B88: 74 | C88: 1
A89: Daenerys | B89: 4 | C89: 1
A90: DeathEnD | B90: 46 | C90: 1
A91: Buster | B91: 8 | C91: 1
A92: Thief | B92: 13 | C92: 1
A93: Kirby | B93: 91 | C93: 1
A94: WhatAmI | B94: 15 | C94: 1
A95: MGhappyhobo | B95: 40 | C95: 1
A96: TemujinGK | B96: 14 | C96: 1
A97: Soulquest | B97: 68 | C97: 1
A98: Cowman | B98: 77 | C98: 1
A99: Days | B99: 4 | C99: 1
A100: AmpliFy | B100: 5 | C100: 1
A101: IIIIIIIIIIII | B101: 3 | C101: 1
A102: Drachma | B102: 7 | C102: 1
A103: IIIIIIIIIIII | B103: 2 | C103: 1
A104: avilo | B104: 10 | C104: 1
A105: IIIIIIIIIIII | B105: 16 | C105: 1
A106: MikeRoss | B106: 33 | C106: 1
A107: Destiny | B107: 3 | C107: 1
A108: reborn | B108: 5 | C108: 1
A109: FIGHTO | B109: 82 | C109: 1
A110: Seductress | B110: 121 | C110: 1
A111: Shynika | B111: 12 | C111: 1
A112: IIIIIIIIIIII | B112: 38 | C112: 1
A113: Mavis | B113: 85 | C113: 1
A114: IlIlIlIlIlIl | B114: 9 | C114: 1
A115: Most | B115: 81 | C115: 1
A116: IIIIIIIIIIII | B116: 82 | C116: 1
A117: IIIIIIIIIIII | B117: 110 | C117: 1
A118: RivaL | B118: 12 | C118: 1
A119: llllllllllll | B119: 45 | C119: 1
A120: Vitross | B120: 34 | C120: 1
A121: IIIllllllIII | B121: 124 | C121: 1
A122: llllllllllll | B122: 57 | C122: 1
A123: Probe | B123: 24 | C123: 1
A124: PsychO | B124: 9 | C124: 1
A125: FenrisWolf | B125: 18 | C125: 1
A126: TiNYUzi | B126: 3 | C126: 1
A127: Chenwei | B127: 61 | C127: 1
A128: RuFF | B128: 40 | C128: 1
A129: SteAdfaSt | B129: 8 | C129: 1
A130: IIIllllIIllI | B130: 12 | C130: 1
A131: Bonkarooni | B131: 38 | C131: 1
A132: Quonzar | B132: 104 | C132: 1
A133: puCK | B133: 39 | C133: 1
A134: Towelie | B134: 65 | C134: 1
A135: Couchpotato | B135: 125 | C135: 1
A136: Sterling | B136: 27 | C136: 1
A137: RayReign | B137: 10 | C137: 1
A138: BluEiCEs | B138: 21 | C138: 1
A139: IIIIIIIIIIII | B139: 129 | C139: 1
A140: gricaine | B140: 147 | C140: 1
A141: Anwis | B141: 67 | C141: 1
A142: DiVa | B142: 65 | C142: 1
A143: Anavrin | B143: 151 | C143: 1
A144: llllllllllll | B144: 90 | C144: 1
A145: Ninja | B145: 42 | C145: 1
A146: Zoun | B146: 102 | C146: 1
A147: Bini | B147: 135 | C147: 1
A148: Rob | B148: 15 | C148: 1
A149: Revolution | B149: 13 | C149: 1
A150: Corolla | B150: 80 | C150: 1
A151: IIIIIIIIIIII | B151: 130 | C151: 1
A152: Erik | B152: 3 | C152: 1
A153: BarcodeKilla | B153: 73 | C153: 1
A154: FourBolt | B154: 86 | C154: 1
A155: Shinga | B155: 137 | C155: 1
A156: vVvRiFFRuFF | B156: 29 | C156: 1
A157: coyote | B157: 15 | C157: 1
A158: Creature | B158: 72 | C158: 1
A159: Frustration | B159: 29 | C159: 1
A160: IIIIIIIIIIII | B160: 64 | C160: 1
A161: lIlIlllIIllI | B161: 161 | C161: 1
A162: Nathanias | B162: 104 | C162: 1
A163: Justice | B163: 5 | C163: 1
A164: BoBo | B164: 100 | C164: 1
A165: WhatTheF | B165: 16 | C165: 1
A166: IIIIIIIIIIII | B166: 149 | C166: 1
A167: Sheep | B167: 79 | C167: 1
A168: SmallTanTan | B168: 126 | C168: 1
A169: Moon | B169: 97 | C169: 1
A170: GuNsHy | B170: 126 | C170: 1
A171: Night | B171: 179 | C171: 1
A172: IIIlllIII | B172: 109 | C172: 1
A173: mewby | B173: 6 | C173: 1
A174: WinD | B174: 135 | C174: 1
A175: DontPanic | B175: 124 | C175: 1
A176: FallenGodz | B176: 102 | C176: 1
A177: IIIIIIIIIII | B177: 45 | C177: 1
A178: Albion | B178: 159 | C178: 1
A179: Wally | B179: 29 | C179: 1
A180: Nemix | B180: 89 | C180: 1
A181: nOoOoOoOoOb | B181: 101 | C181: 1
A182: OdinIsBack | B182: 14 | C182: 1
A183: SLeet | B183: 35 | C183: 1
A184: reverie | B184: 100 | C184: 1
A185: ShinGouki | B185: 133 | C185: 1
A186: Mark | B186: 23 | C186: 1
A187: CatZ | B187: 121 | C187: 1
A188: Gemini | B188: 5 | C188: 1
A189: Crowbar | B189: 37 | C189: 1
A190: Cloud | B190: 154 | C190: 1
A191: Mantequilla | B191: 57 | C191: 1
A192: Crayon | B192: 88 | C192: 1
A193: lemonhaze | B193: 61 | C193: 1
A194: SliTaz | B194: 126 | C194: 1
A195: SeOuLStEaL | B195: 63 | C195: 1
A196: Ravenz | B196: 15 | C196: 1
A197: ForVengeance | B197: 95 | C197: 1
A198: ZipfelKobold | B198: 89 | C198: 1
A199: Galvanox | B199: 31 | C199: 1
